[Event "Early-Titled-Tuesday-Blitz-December-26-2023"]
[Site "Chess.com"]
[Date "2023.12.26"]
[Round "6"]
[White "Devil_Sun"]
[Black "seopie"]
[Result "1-0"]
[WhiteElo "2609"]
[BlackElo "2798"]
[TimeControl "180+1"]
[EndTime "9:09:53 PST"]
[Termination "Devil_Sun won on time"]

1. d4 {[%clk 0:03:00.9]} 1... d6 {[%clk 0:03:00.9]} 2. c4 {[%clk 0:02:58.4]}
2... Nf6 {[%clk 0:03:00.8]} 3. Nc3 {[%clk 0:02:58.3]} 3... Bf5 {[%clk
0:03:00.1]} 4. Nf3 {[%clk 0:02:56.1]} 4... g6 {[%clk 0:02:57.6]} 5. Nh4 {[%clk
0:02:51.4]} 5... Bd7 {[%clk 0:02:54.6]} 6. e4 {[%clk 0:02:50.6]} 6... Bg7 {[%clk
0:02:54.8]} 7. Nf3 {[%clk 0:02:46.4]} 7... O-O {[%clk 0:02:52.8]} 8. Be2 {[%clk
0:02:46.3]} 8... Bg4 {[%clk 0:02:50.3]} 9. Be3 {[%clk 0:02:39.2]} 9... Nc6
{[%clk 0:02:48.5]} 10. d5 {[%clk 0:02:38.4]} 10... Bxf3 {[%clk 0:02:46.9]} 11.
Bxf3 {[%clk 0:02:38.4]} 11... Ne5 {[%clk 0:02:47.6]} 12. Be2 {[%clk 0:02:39]}
12... c6 {[%clk 0:02:46.9]} 13. O-O {[%clk 0:02:34.8]} 13... Qa5 {[%clk
0:02:46.1]} 14. a3 {[%clk 0:02:28.6]} 14... Rfc8 {[%clk 0:02:45.3]} 15. b4
{[%clk 0:02:25]} 15... Qd8 {[%clk 0:02:45.6]} 16. Rc1 {[%clk 0:02:21]} 16... a5
{[%clk 0:02:43.5]} 17. f4 {[%clk 0:02:19.1]} 17... Ned7 {[%clk 0:02:43.3]} 18.
Qb3 {[%clk 0:02:11.7]} 18... axb4 {[%clk 0:02:35.6]} 19. axb4 {[%clk 0:02:11.3]}
19... Ne8 {[%clk 0:02:35.1]} 20. Bf3 {[%clk 0:02:05.4]} 20... Nc7 {[%clk
0:02:34.2]} 21. Na4 {[%clk 0:02:00.6]} 21... e6 {[%clk 0:02:27.7]} 22. dxe6
{[%clk 0:01:47.9]} 22... Nxe6 {[%clk 0:02:27.8]} 23. Rfd1 {[%clk 0:01:45.6]}
23... Qc7 {[%clk 0:02:26.6]} 24. f5 {[%clk 0:01:44.4]} 24... Nef8 {[%clk
0:02:25.6]} 25. Bf4 {[%clk 0:01:38.3]} 25... Ne5 {[%clk 0:02:25.5]} 26. c5
{[%clk 0:01:34.5]} 26... dxc5 {[%clk 0:02:25.5]} 27. Nxc5 {[%clk 0:01:31.8]}
27... b6 {[%clk 0:02:21]} 28. Nd3 {[%clk 0:01:27.9]} 28... Nxf3+ {[%clk
0:02:20.6]} 29. gxf3 {[%clk 0:01:28.8]} 29... Qa7 {[%clk 0:02:17.6]} 30. fxg6
{[%clk 0:01:27.3]} 30... hxg6 {[%clk 0:02:16.6]} 31. Ne5 {[%clk 0:01:24.2]}
31... c5 {[%clk 0:02:09]} 32. Rd7 {[%clk 0:00:36.7]} 32... Qxd7 {[%clk
0:02:05.4]} 33. Nxd7 {[%clk 0:00:35.4]} 33... Nxd7 {[%clk 0:02:06.3]} 34. bxc5
{[%clk 0:00:34]} 34... bxc5 {[%clk 0:02:06.4]} 35. Be3 {[%clk 0:00:34.6]} 35...
Rab8 {[%clk 0:01:59.5]} 36. Qd5 {[%clk 0:00:34.1]} 36... Nb6 {[%clk 0:01:51.7]}
37. Qd6 {[%clk 0:00:24.5]} 37... Na4 {[%clk 0:01:51.2]} 38. Rc4 {[%clk
0:00:20.5]} 38... Rb3 {[%clk 0:01:45.3]} 39. Rxa4 {[%clk 0:00:19.3]} 39... Rxe3
{[%clk 0:01:45]} 40. Rc4 {[%clk 0:00:19.6]} 40... Bf8 {[%clk 0:01:31.6]} 41. Qd7
{[%clk 0:00:17.9]} 41... Ra8 {[%clk 0:01:29.3]} 42. Kf2 {[%clk 0:00:18.6]} 42...
Raa3 {[%clk 0:01:28.6]} 43. Qg4 {[%clk 0:00:19.1]} 43... Reb3 {[%clk 0:01:24.6]}
44. h4 {[%clk 0:00:19.7]} 44... Rb2+ {[%clk 0:01:23.3]} 45. Kg3 {[%clk 0:00:20]}
45... Raa2 {[%clk 0:01:23.6]} 46. Kf4 {[%clk 0:00:19.2]} 46... Rg2 {[%clk
0:01:19.8]} 47. Qd7 {[%clk 0:00:18.9]} 47... Rh2 {[%clk 0:01:19.4]} 48. Rc3
{[%clk 0:00:13.2]} 48... Rxh4+ {[%clk 0:01:16.2]} 49. Ke3 {[%clk 0:00:13.7]}
49... Bh6+ {[%clk 0:01:14.8]} 50. f4 {[%clk 0:00:13.9]} 50... Rxf4 {[%clk
0:01:03.5]} 51. Rb3 {[%clk 0:00:10.5]} 51... Ra8 {[%clk 0:00:59.4]} 52. Rb7
{[%clk 0:00:07.3]} 52... Rf6+ {[%clk 0:00:54.4]} 53. Kd3 {[%clk 0:00:06.8]}
53... Bf4 {[%clk 0:00:48.1]} 54. Qe7 {[%clk 0:00:05.3]} 54... Bg5 {[%clk
0:00:36.3]} 55. Qxc5 {[%clk 0:00:05.5]} 55... Rd8+ {[%clk 0:00:32.3]} 56. Kc4
{[%clk 0:00:05]} 56... Bh6 {[%clk 0:00:27.3]} 57. Qe7 {[%clk 0:00:03.6]} 57...
Rc8+ {[%clk 0:00:20.3]} 58. Kb5 {[%clk 0:00:02.8]} 58... Bg7 {[%clk 0:00:19.9]}
59. Rc7 {[%clk 0:00:03.2]} 59... Rb8+ {[%clk 0:00:19.7]} 60. Rb7 {[%clk
0:00:03.9]} 60... Rf8 {[%clk 0:00:20.4]} 61. Qd7 {[%clk 0:00:04.3]} 61... Rf1
{[%clk 0:00:20.3]} 62. e5 {[%clk 0:00:04.8]} 62... Bxe5 {[%clk 0:00:19]} 63. Qd3
{[%clk 0:00:05.5]} 63... Rf5 {[%clk 0:00:18.2]} 64. Rd7 {[%clk 0:00:05.8]} 64...
Bg7+ {[%clk 0:00:18.1]} 65. Kc4 {[%clk 0:00:06.4]} 65... Rf6 {[%clk 0:00:19]}
66. Rd8 {[%clk 0:00:06.5]} 66... Rxd8 {[%clk 0:00:18.2]} 67. Qxd8+ {[%clk
0:00:06.7]} 67... Kh7 {[%clk 0:00:17.9]} 68. Kd5 {[%clk 0:00:07.6]} 68... Rf5+
{[%clk 0:00:17.4]} 69. Ke4 {[%clk 0:00:07.7]} 69... Bf6 {[%clk 0:00:17.2]} 70.
Qe8 {[%clk 0:00:07.5]} 70... Kg7 {[%clk 0:00:16.9]} 71. Qc6 {[%clk 0:00:07.4]}
71... Re5+ {[%clk 0:00:16.9]} 72. Kf4 {[%clk 0:00:08]} 72... Re6 {[%clk
0:00:17.4]} 73. Qc4 {[%clk 0:00:07.8]} 73... Be5+ {[%clk 0:00:17.6]} 74. Kf3
{[%clk 0:00:07.2]} 74... Rf6+ {[%clk 0:00:17.8]} 75. Ke3 {[%clk 0:00:06.2]}
75... Rf4 {[%clk 0:00:17.4]} 76. Qd5 {[%clk 0:00:05.1]} 76... Rf5 {[%clk
0:00:18.3]} 77. Qc6 {[%clk 0:00:05]} 77... Bf6 {[%clk 0:00:18.5]} 78. Ke4 {[%clk
0:00:05.4]} 78... Re5+ {[%clk 0:00:18.6]} 79. Kf4 {[%clk 0:00:05.5]} 79... Re6
{[%clk 0:00:19.5]} 80. Qc4 {[%clk 0:00:05]} 80... Be5+ {[%clk 0:00:18.8]} 81.
Kf3 {[%clk 0:00:04.5]} 81... Rf6+ {[%clk 0:00:16.4]} 82. Ke3 {[%clk 0:00:04.9]}
82... Bd6 {[%clk 0:00:15.8]} 83. Qd5 {[%clk 0:00:04.3]} 83... Re6+ {[%clk
0:00:15.5]} 84. Kf3 {[%clk 0:00:04.8]} 84... Kf8 {[%clk 0:00:16]} 85. Qa8+
{[%clk 0:00:05]} 85... Ke7 {[%clk 0:00:15.9]} 86. Qb7+ {[%clk 0:00:05.1]} 86...
Kf6 {[%clk 0:00:16.5]} 87. Qb2+ {[%clk 0:00:05.6]} 87... Be5 {[%clk 0:00:16.8]}
88. Qb5 {[%clk 0:00:05.5]} 88... Kg7 {[%clk 0:00:15.8]} 89. Qd5 {[%clk 0:00:05]}
89... Re7 {[%clk 0:00:16]} 90. Qc5 {[%clk 0:00:03.9]} 90... Bf6 {[%clk 0:00:16]}
91. Qd5 {[%clk 0:00:04.3]} 91... Ra7 {[%clk 0:00:13.6]} 92. Qc4 {[%clk
0:00:04.6]} 92... Ra3+ {[%clk 0:00:13.7]} 93. Kg4 {[%clk 0:00:05.2]} 93... Be5
{[%clk 0:00:11.3]} 94. Qd5 {[%clk 0:00:04.8]} 94... f5+ {[%clk 0:00:09.9]} 95.
Kg5 {[%clk 0:00:04.7]} 95... Rg3+ {[%clk 0:00:09.2]} 96. Kh4 {[%clk 0:00:05.1]}
96... Rg4+ {[%clk 0:00:04.9]} 97. Kh3 {[%clk 0:00:05.2]} 97... Re4 {[%clk
0:00:05.2]} 98. Qb7+ {[%clk 0:00:04.1]} 98... Kh6 {[%clk 0:00:05.5]} 99. Qb1
{[%clk 0:00:04.2]} 99... Re3+ {[%clk 0:00:04.9]} 100. Kg2 {[%clk 0:00:04.9]}
100... Kg5 {[%clk 0:00:03.7]} 101. Qc1 {[%clk 0:00:05]} 101... Bf4 {[%clk
0:00:03.4]} 102. Qc8 {[%clk 0:00:05.7]} 102... Re2+ {[%clk 0:00:01.3]} 103. Kf3
{[%clk 0:00:05.9]} 103... Re3+ {[%clk 0:00:01.7]} 104. Kf2 {[%clk 0:00:06.6]}
1-0

[Event "Early-Titled-Tuesday-Blitz-December-26-2023"]
[Site "Chess.com"]
[Date "2023.12.26"]
[Round "7"]
[White "DucksParadise"]
[Black "NovozhilovSemen"]
[Result "0-1"]
[WhiteElo "2497"]
[BlackElo "2769"]
[TimeControl "180+1"]
[EndTime "9:11:58 PST"]
[Termination "NovozhilovSemen won by checkmate"]

1. e4 {[%clk 0:03:00.9]} 1... c5 {[%clk 0:02:59.5]} 2. c3 {[%clk 0:02:59.5]}
2... Nf6 {[%clk 0:02:59]} 3. e5 {[%clk 0:02:59.5]} 3... Nd5 {[%clk 0:02:58.3]}
4. Nf3 {[%clk 0:03:00]} 4... Nc6 {[%clk 0:02:58.4]} 5. Bc4 {[%clk 0:02:59.7]}
5... Nb6 {[%clk 0:02:58]} 6. Bb3 {[%clk 0:03:00]} 6... d6 {[%clk 0:02:58.3]} 7.
exd6 {[%clk 0:02:59.4]} 7... Qxd6 {[%clk 0:02:59]} 8. O-O {[%clk 0:02:57.6]}
8... Be6 {[%clk 0:02:59.1]} 9. Bxe6 {[%clk 0:02:49.7]} 9... Qxe6 {[%clk
0:03:00]} 10. d4 {[%clk 0:02:39.1]} 10... cxd4 {[%clk 0:03:00.9]} 11. Nxd4
{[%clk 0:02:39.3]} 11... Nxd4 {[%clk 0:03:01.1]} 12. Qxd4 {[%clk 0:02:39.5]}
12... Rd8 {[%clk 0:03:01.7]} 13. Qh4 {[%clk 0:02:36.7]} 13... h5 {[%clk
0:03:02.1]} 14. Nd2 {[%clk 0:02:22.2]} 14... Qe2 {[%clk 0:02:47.6]} 15. Nf3
{[%clk 0:02:21.4]} 15... Rd1 {[%clk 0:02:42.4]} 16. Be3 {[%clk 0:02:13.8]} 16...
Qxf1# {[%clk 0:02:41.4]} 0-1

[Event "Early-Titled-Tuesday-Blitz-December-26-2023"]
[Site "Chess.com"]
[Date "2023.12.26"]
[Round "7"]
[White "BeardedNM"]
[Black "NovakRatko"]
[Result "0-1"]
[WhiteElo "2163"]
[BlackElo "2433"]
[TimeControl "180+1"]
[EndTime "9:12:41 PST"]
[Termination "NovakRatko won by resignation"]

1. e4 {[%clk 0:02:58.3]} 1... d5 {[%clk 0:02:59.8]} 2. exd5 {[%clk 0:02:57.8]}
2... c6 {[%clk 0:03:00.4]} 3. dxc6 {[%clk 0:02:53]} 3... Nxc6 {[%clk 0:03:01.3]}
4. Nf3 {[%clk 0:02:48.3]} 4... e5 {[%clk 0:03:01.4]} 5. d3 {[%clk 0:02:47.2]}
5... Bc5 {[%clk 0:03:01.3]} 6. Be2 {[%clk 0:02:47.1]} 6... f5 {[%clk 0:03:00.3]}
7. O-O {[%clk 0:02:46.1]} 7... Nf6 {[%clk 0:03:00.7]} 8. Nc3 {[%clk 0:02:44.9]}
8... O-O {[%clk 0:03:00.7]} 9. Bg5 {[%clk 0:02:43.5]} 9... Be6 {[%clk
0:03:01.1]} 10. Re1 {[%clk 0:02:25.9]} 10... Qb6 {[%clk 0:02:54.6]} 11. Bh4
{[%clk 0:02:03.8]} 11... Ng4 {[%clk 0:02:54]} 12. Na4 {[%clk 0:01:49.7]} 12...
Bxf2+ {[%clk 0:02:27]} 13. Bxf2 {[%clk 0:01:48.8]} 13... Qxf2+ {[%clk 0:02:25]}
14. Kh1 {[%clk 0:01:47.5]} 14... Ne3 {[%clk 0:02:25]} 0-1

[Event "Early-Titled-Tuesday-Blitz-December-26-2023"]
[Site "Chess.com"]
[Date "2023.12.26"]
[Round "7"]
[White "margarita_2703"]
[Black "Let_it_be_1"]
[Result "1-0"]
[WhiteElo "2348"]
[BlackElo "2555"]
[TimeControl "180+1"]
[EndTime "9:12:44 PST"]
[Termination "margarita_2703 won by resignation"]

1. e4 {[%clk 0:03:00.9]} 1... e6 {[%clk 0:02:59.6]} 2. d4 {[%clk 0:02:58.4]}
2... d5 {[%clk 0:03:00.1]} 3. e5 {[%clk 0:02:57.8]} 3... c5 {[%clk 0:02:59.9]}
4. c3 {[%clk 0:02:58.7]} 4... Qb6 {[%clk 0:02:59.2]} 5. Nf3 {[%clk 0:02:59.2]}
5... Nc6 {[%clk 0:02:59.6]} 6. Na3 {[%clk 0:02:59.1]} 6... cxd4 {[%clk
0:02:57.8]} 7. cxd4 {[%clk 0:03:00]} 7... Bb4+ {[%clk 0:02:57.3]} 8. Bd2 {[%clk
0:02:59.8]} 8... Nxd4 {[%clk 0:02:37.4]} 9. Nxd4 {[%clk 0:02:57.5]} 9... Qxd4
{[%clk 0:02:25.2]} 10. Qa4+ {[%clk 0:02:57.2]} 10... Bd7 {[%clk 0:02:25.1]} 11.
Qxb4 {[%clk 0:02:58.1]} 11... Qxe5+ {[%clk 0:02:25.1]} 12. Be2 {[%clk 0:02:58]}
12... Nf6 {[%clk 0:02:24.4]} 13. Nb5 {[%clk 0:02:56]} 13... Bxb5 {[%clk
0:01:56.5]} 14. Qxb5+ {[%clk 0:02:56.9]} 14... Nd7 {[%clk 0:01:54.2]} 15. Bc3
{[%clk 0:02:53.1]} 15... Qe4 {[%clk 0:01:47.6]} 16. O-O {[%clk 0:02:44.5]} 16...
O-O {[%clk 0:01:39.5]} 17. Bf3 {[%clk 0:02:40.4]} 1-0

[Event "Early-Titled-Tuesday-Blitz-December-26-2023"]
[Site "Chess.com"]
[Date "2023.12.26"]
[Round "7"]
[White "Ducke13"]
[Black "ChessArchitect64"]
[Result "1-0"]
[WhiteElo "2402"]
[BlackElo "2276"]
[TimeControl "180+1"]
[EndTime "9:13:17 PST"]
[Termination "Ducke13 won by resignation"]

1. d4 {[%clk 0:02:58.8]} 1... Nf6 {[%clk 0:02:59.3]} 2. g3 {[%clk 0:02:56.5]}
2... g6 {[%clk 0:02:59.3]} 3. Bg2 {[%clk 0:02:56.1]} 3... Bg7 {[%clk 0:02:58.9]}
4. e4 {[%clk 0:02:56.5]} 4... O-O {[%clk 0:02:57.2]} 5. Ne2 {[%clk 0:02:57.1]}
5... d6 {[%clk 0:02:56.4]} 6. O-O {[%clk 0:02:57.6]} 6... c6 {[%clk 0:02:56.3]}
7. a4 {[%clk 0:02:57]} 7... Qc7 {[%clk 0:02:56.3]} 8. Nbc3 {[%clk 0:02:57.4]}
8... a5 {[%clk 0:02:56]} 9. h3 {[%clk 0:02:57]} 9... Na6 {[%clk 0:02:55.6]} 10.
f4 {[%clk 0:02:28.5]} 10... Nd7 {[%clk 0:02:54.2]} 11. Be3 {[%clk 0:02:25.8]}
11... e5 {[%clk 0:02:53.2]} 12. Qd2 {[%clk 0:02:17.1]} 12... Nb4 {[%clk
0:02:51]} 13. Rad1 {[%clk 0:02:11.3]} 13... Re8 {[%clk 0:02:49.1]} 14. fxe5
{[%clk 0:02:00.7]} 14... dxe5 {[%clk 0:02:48.3]} 15. d5 {[%clk 0:01:38.4]} 15...
cxd5 {[%clk 0:02:48.4]} 16. exd5 {[%clk 0:01:38.7]} 16... Nb6 {[%clk 0:02:28.5]}
17. d6 {[%clk 0:01:36.1]} 17... Qd8 {[%clk 0:02:28]} 18. Nb5 {[%clk 0:01:30.4]}
18... Bd7 {[%clk 0:02:25.8]} 19. Nc7 {[%clk 0:01:27.5]} 19... Rc8 {[%clk
0:02:25]} 20. Bxb6 {[%clk 0:01:26.4]} 20... Re6 {[%clk 0:02:23.4]} 1-0

[Event "Early-Titled-Tuesday-Blitz-December-26-2023"]
[Site "Chess.com"]
[Date "2023.12.26"]
[Round "7"]
[White "szefru"]
[Black "Fischerev7"]
[Result "0-1"]
[WhiteElo "2266"]
[BlackElo "2395"]
[TimeControl "180+1"]
[EndTime "9:13:37 PST"]
[Termination "Fischerev7 won by checkmate"]

1. e4 {[%clk 0:03:00.9]} 1... c5 {[%clk 0:02:59]} 2. b3 {[%clk 0:02:58.8]} 2...
Nf6 {[%clk 0:02:53]} 3. e5 {[%clk 0:02:58.2]} 3... Nd5 {[%clk 0:02:52.8]} 4. Bb2
{[%clk 0:02:58.3]} 4... Nc6 {[%clk 0:02:51.6]} 5. Bb5 {[%clk 0:02:57.8]} 5...
Nd4 {[%clk 0:02:50.5]} 6. Bxd4 {[%clk 0:02:48.6]} 6... cxd4 {[%clk 0:02:51.4]}
7. Ne2 {[%clk 0:02:48.6]} 7... Qc7 {[%clk 0:02:43.8]} 8. O-O {[%clk 0:02:28.1]}
8... Qxe5 {[%clk 0:02:41.9]} 9. f4 {[%clk 0:02:28.1]} 9... Nxf4 {[%clk
0:02:39.4]} 10. Bxd7+ {[%clk 0:02:28]} 10... Bxd7 {[%clk 0:02:38.7]} 11. Nxf4
{[%clk 0:02:28.3]} 11... e6 {[%clk 0:02:25.3]} 12. Nd3 {[%clk 0:02:25.1]} 12...
Qg5 {[%clk 0:02:20.6]} 13. Qf3 {[%clk 0:02:23.8]} 13... f6 {[%clk 0:01:56.8]}
14. Qxb7 {[%clk 0:02:20.7]} 14... Rd8 {[%clk 0:01:57.3]} 15. a4 {[%clk
0:02:07.9]} 15... Bd6 {[%clk 0:01:53.9]} 16. Qe4 {[%clk 0:01:57.4]} 16... O-O
{[%clk 0:01:50.6]} 17. Qxd4 {[%clk 0:01:53.1]} 17... Bc6 {[%clk 0:01:47.8]} 18.
Qf2 {[%clk 0:01:53]} 18... e5 {[%clk 0:01:39.4]} 19. Qe3 {[%clk 0:01:44.7]}
19... Qxg2# {[%clk 0:01:38.2]} 0-1

[Event "Early-Titled-Tuesday-Blitz-December-26-2023"]
[Site "Chess.com"]
[Date "2023.12.26"]
[Round "7"]
[White "ukchessbomber"]
[Black "Angry_Twin"]
[Result "0-1"]
[WhiteElo "2703"]
[BlackElo "2947"]
[TimeControl "180+1"]
[EndTime "9:13:48 PST"]
[Termination "Angry_Twin won by resignation"]

1. a3 {[%clk 0:03:00.9]} 1... Nf6 {[%clk 0:02:59.8]} 2. b4 {[%clk 0:02:56]} 2...
d5 {[%clk 0:02:58.7]} 3. Bb2 {[%clk 0:02:54.9]} 3... Bf5 {[%clk 0:02:59.3]} 4.
Nf3 {[%clk 0:02:51]} 4... e6 {[%clk 0:02:59.5]} 5. g3 {[%clk 0:02:49.8]} 5...
Be7 {[%clk 0:02:59.7]} 6. Bg2 {[%clk 0:02:50.3]} 6... O-O {[%clk 0:03:00.4]} 7.
O-O {[%clk 0:02:51]} 7... c5 {[%clk 0:03:00.9]} 8. bxc5 {[%clk 0:02:50]} 8...
Bxc5 {[%clk 0:03:00.9]} 9. c4 {[%clk 0:02:42.9]} 9... Nc6 {[%clk 0:02:57.4]} 10.
Qa4 {[%clk 0:02:21.6]} 10... d4 {[%clk 0:02:51.1]} 11. Qb5 {[%clk 0:02:19.1]}
11... Qb6 {[%clk 0:02:43.6]} 12. d3 {[%clk 0:02:18.4]} 12... Nd7 {[%clk
0:02:27.3]} 13. Nbd2 {[%clk 0:02:13.9]} 13... Qc7 {[%clk 0:02:27.4]} 14. Qa4
{[%clk 0:01:55.3]} 14... e5 {[%clk 0:02:19.6]} 15. Ng5 {[%clk 0:01:38.4]} 15...
Be7 {[%clk 0:02:19.5]} 16. Nge4 {[%clk 0:01:37.4]} 16... Be6 {[%clk 0:02:19.8]}
17. c5 {[%clk 0:01:22.3]} 17... f5 {[%clk 0:02:17.2]} 18. Nd6 {[%clk 0:01:14.7]}
18... Nxc5 {[%clk 0:02:15.9]} 19. Nb5 {[%clk 0:00:58.3]} 19... Qb6 {[%clk
0:02:14.5]} 0-1

[Event "Early-Titled-Tuesday-Blitz-December-26-2023"]
[Site "Chess.com"]
[Date "2023.12.26"]
[Round "7"]
[White "Ajedrez_con_German"]
[Black "Cheer_Down"]
[Result "1-0"]
[WhiteElo "2601"]
[BlackElo "2492"]
[TimeControl "180+1"]
[EndTime "9:14:04 PST"]
[Termination "Ajedrez_con_German won by resignation"]

1. Nf3 {[%clk 0:02:58]} 1... d5 {[%clk 0:02:58.3]} 2. g3 {[%clk 0:02:57.9]} 2...
Nf6 {[%clk 0:02:57.6]} 3. Bg2 {[%clk 0:02:58.4]} 3... e6 {[%clk 0:02:57.8]} 4.
O-O {[%clk 0:02:59.1]} 4... Be7 {[%clk 0:02:56.7]} 5. c4 {[%clk 0:03:00]} 5...
O-O {[%clk 0:02:54.4]} 6. b3 {[%clk 0:03:00.5]} 6... b6 {[%clk 0:02:50.8]} 7.
Bb2 {[%clk 0:03:00.2]} 7... Bb7 {[%clk 0:02:51]} 8. cxd5 {[%clk 0:02:59.7]} 8...
Bxd5 {[%clk 0:02:46.1]} 9. Nc3 {[%clk 0:02:59.7]} 9... Bb7 {[%clk 0:02:45.4]}
10. d4 {[%clk 0:03:00.2]} 10... Nbd7 {[%clk 0:02:45.2]} 11. Rc1 {[%clk
0:03:00.2]} 11... c5 {[%clk 0:02:45.4]} 12. Qd2 {[%clk 0:03:00.5]} 12... cxd4
{[%clk 0:02:44.5]} 13. Qxd4 {[%clk 0:03:00.8]} 13... Nc5 {[%clk 0:02:43.2]} 14.
Rfd1 {[%clk 0:03:01.1]} 14... Qxd4 {[%clk 0:02:42.6]} 15. Nxd4 {[%clk 0:03:01]}
15... Bxg2 {[%clk 0:02:40.9]} 16. Kxg2 {[%clk 0:03:01.9]} 16... Rac8 {[%clk
0:02:40.1]} 17. b4 {[%clk 0:02:59.6]} 17... Ncd7 {[%clk 0:02:37.7]} 18. a3
{[%clk 0:02:55.8]} 18... Ne5 {[%clk 0:02:37]} 19. Ncb5 {[%clk 0:02:25.4]} 19...
a5 {[%clk 0:02:33.7]} 20. bxa5 {[%clk 0:02:15.5]} 20... bxa5 {[%clk 0:02:33.7]}
21. Nxe6 {[%clk 0:02:12.8]} 21... fxe6 {[%clk 0:02:26.2]} 22. Bxe5 {[%clk
0:02:12.4]} 22... Rxc1 {[%clk 0:02:21.5]} 23. Rxc1 {[%clk 0:02:10.1]} 23... Ng4
{[%clk 0:02:21.4]} 24. Bd4 {[%clk 0:02:07.2]} 24... e5 {[%clk 0:02:19.8]} 25.
Ba7 {[%clk 0:02:01.2]} 25... e4 {[%clk 0:02:05.2]} 26. h3 {[%clk 0:01:55.1]}
26... Ne5 {[%clk 0:02:04.4]} 27. Bd4 {[%clk 0:01:50.6]} 27... Rb8 {[%clk
0:01:57.4]} 28. a4 {[%clk 0:01:50]} 28... Nf7 {[%clk 0:01:55.3]} 29. Rc7 {[%clk
0:01:45.9]} 29... Bb4 {[%clk 0:01:51.4]} 30. e3 {[%clk 0:01:38.3]} 30... Ng5
{[%clk 0:01:47.3]} 31. Rxg7+ {[%clk 0:01:37.4]} 1-0

[Event "Early-Titled-Tuesday-Blitz-December-26-2023"]
[Site "Chess.com"]
[Date "2023.12.26"]
[Round "7"]
[White "Agibileg"]
[Black "WeAintSurePal"]
[Result "1-0"]
[WhiteElo "2695"]
[BlackElo "2521"]
[TimeControl "180+1"]
[EndTime "9:14:25 PST"]
[Termination "Agibileg won by resignation"]

1. d4 {[%clk 0:03:00.9]} 1... d5 {[%clk 0:02:58.6]} 2. c4 {[%clk 0:03:01]} 2...
e6 {[%clk 0:02:57.7]} 3. Nc3 {[%clk 0:03:00.6]} 3... Nf6 {[%clk 0:02:56.6]} 4.
cxd5 {[%clk 0:02:59.9]} 4... exd5 {[%clk 0:02:57.5]} 5. Bg5 {[%clk 0:02:59.6]}
5... c6 {[%clk 0:02:51.4]} 6. e3 {[%clk 0:02:58.9]} 6... Be6 {[%clk 0:02:48.5]}
7. Bd3 {[%clk 0:02:58.3]} 7... Nbd7 {[%clk 0:02:46.1]} 8. Nf3 {[%clk 0:02:58.9]}
8... h6 {[%clk 0:02:46.1]} 9. Bh4 {[%clk 0:02:59]} 9... g5 {[%clk 0:02:45.4]}
10. Bg3 {[%clk 0:02:58.7]} 10... Nh5 {[%clk 0:02:39.4]} 11. Be5 {[%clk
0:02:58.3]} 11... Nxe5 {[%clk 0:02:38.9]} 12. Nxe5 {[%clk 0:02:47.2]} 12... Nf6
{[%clk 0:02:37.7]} 13. Qb3 {[%clk 0:02:44.8]} 13... Qb6 {[%clk 0:02:35.5]} 14.
Qc2 {[%clk 0:02:43]} 14... Bd6 {[%clk 0:02:32.2]} 15. O-O {[%clk 0:02:39.6]}
15... Qd8 {[%clk 0:02:27.2]} 16. f4 {[%clk 0:02:39.9]} 16... gxf4 {[%clk
0:02:12.9]} 17. exf4 {[%clk 0:02:40.8]} 17... Qb6 {[%clk 0:02:07.7]} 18. Kh1
{[%clk 0:02:40.5]} 18... Qxd4 {[%clk 0:02:01.2]} 19. Rad1 {[%clk 0:02:28.5]}
19... Qb6 {[%clk 0:01:47.8]} 20. Bf5 {[%clk 0:02:28.3]} 20... Bxe5 {[%clk
0:00:42.6]} 21. fxe5 {[%clk 0:02:26.8]} 21... Ng4 {[%clk 0:00:36.8]} 22. Bxe6
{[%clk 0:02:24]} 22... fxe6 {[%clk 0:00:32.4]} 23. Qg6+ {[%clk 0:02:23]} 23...
Ke7 {[%clk 0:00:32]} 24. Qg7+ {[%clk 0:02:22.5]} 1-0

[Event "Early-Titled-Tuesday-Blitz-December-26-2023"]
[Site "Chess.com"]
[Date "2023.12.26"]
[Round "7"]
[White "GM-2023"]
[Black "Dewarfd"]
[Result "0-1"]
[WhiteElo "1917"]
[BlackElo "2090"]
[TimeControl "180+1"]
[EndTime "9:14:38 PST"]
[Termination "Dewarfd won by resignation"]

1. e4 {[%clk 0:03:00.9]} 1... c5 {[%clk 0:02:58.9]} 2. Nf3 {[%clk 0:03:00.9]}
2... e6 {[%clk 0:02:58.6]} 3. d4 {[%clk 0:03:00.6]} 3... cxd4 {[%clk 0:02:58.9]}
4. Nxd4 {[%clk 0:03:00.8]} 4... a6 {[%clk 0:02:58.3]} 5. Nc3 {[%clk 0:02:59.9]}
5... Qc7 {[%clk 0:02:55.1]} 6. Be3 {[%clk 0:02:59]} 6... Nf6 {[%clk 0:02:55]} 7.
Bd3 {[%clk 0:02:58.1]} 7... b5 {[%clk 0:02:54.3]} 8. a3 {[%clk 0:02:56.1]} 8...
Bb7 {[%clk 0:02:54.6]} 9. O-O {[%clk 0:02:55]} 9... Bc5 {[%clk 0:02:54.2]} 10.
b4 {[%clk 0:02:50.9]} 10... Bd6 {[%clk 0:02:50.3]} 11. Qd2 {[%clk 0:02:47.3]}
11... Bxh2+ {[%clk 0:02:47.9]} 12. Kh1 {[%clk 0:02:45]} 12... Be5 {[%clk
0:02:47.3]} 13. f4 {[%clk 0:02:44.5]} 13... Bxd4 {[%clk 0:02:39.8]} 14. Bxd4
{[%clk 0:02:43.5]} 14... Nc6 {[%clk 0:02:33.3]} 15. Bxf6 {[%clk 0:02:41.4]}
15... gxf6 {[%clk 0:02:33.3]} 16. f5 {[%clk 0:02:37.2]} 16... Qg3 {[%clk
0:02:26.4]} 17. fxe6 {[%clk 0:02:19.4]} 17... dxe6 {[%clk 0:02:24.6]} 18. Qf4
{[%clk 0:02:14.8]} 18... Qxf4 {[%clk 0:02:18]} 19. Rxf4 {[%clk 0:02:13.6]} 19...
Ne5 {[%clk 0:02:10.1]} 20. Rxf6 {[%clk 0:02:07.5]} 20... Rc8 {[%clk 0:02:09.8]}
21. Nd1 {[%clk 0:01:39.8]} 21... Rg8 {[%clk 0:02:04.9]} 22. Rc1 {[%clk
0:01:38.6]} 22... Rg6 {[%clk 0:01:54.5]} 23. Rxg6 {[%clk 0:01:35.6]} 23... hxg6
{[%clk 0:01:53.6]} 24. Ne3 {[%clk 0:01:28]} 24... Ke7 {[%clk 0:01:46.7]} 25. c4
{[%clk 0:01:25.2]} 25... bxc4 {[%clk 0:01:45.1]} 26. Nxc4 {[%clk 0:01:24.8]}
26... Nxd3 {[%clk 0:01:37.7]} 27. Rd1 {[%clk 0:01:11.4]} 27... Nf2+ {[%clk
0:01:36.2]} 0-1